Cogmind - Beta 15 *** ADVENTURER MODE // 2025.06.18 @ 22:47:09 Player: NED1124 Result: Destroyed by G-47 Trooper with Particle Gun Performance ------------- Evolutions (2) 1000 Regions Visited (4) 800 Robots Destroyed (40) 200 Value Destroyed (1034) 1034 Prototype IDs (0) 0 Alien Tech Used (0) 0 Bonus (0) 0 TOTAL SCORE: 3034 Bonus ------- None Cogmind --------- Core Integrity 0/550 Matter 300/300 Energy 100/100 System Corruption 1% Temperature Cool (9) Movement Core (50) Location -8/Materials Parts ------- > --- POWER (2) -------- (None) > --- PROPULSION (3) --- (None) > --- UTILITY (4) ------ (None) > --- WEAPON (2) ------- (None) > --- INVENTORY (5) ---- Wheel Wheel Medium Matter Pod (100) Experimental Sensor Array Hacking Suite Peak State ------------ > --- POWER ------------ Ion Engine Improved Ion Engine > --- PROPULSION ------- Wheel Wheel Wheel > --- UTILITY ---------- Heat Sink Small Storage Unit Targeting Computer Insulated Plating > --- WEAPON ----------- Light Assault Rifle Light Assault Rifle > --- INVENTORY -------- Wheel Medium Matter Pod Experimental Sensor Array Hacking Suite Shock Bomb Launcher [Rating: 15] Favorites ----------- Power Ion Engine Engine Ion Engine Propulsion Aluminum Leg Leg Aluminum Leg Wheel Compact Wheel Utility Small Storage Unit Device Seismic Detector Storage Small Storage Unit Processor Targeting Computer Protection Light Armor Plating Weapon Small Laser Energy Gun Small Laser Ballistic Gun Light Assault Rifle Launcher Shock Bomb Launcher Build | -11 -10 -10 -9 -8 ------- Run | Yrd Mat Min Mat Mat Slots Evolved 4 | . . . 2 2 Power 1 | . . . . 1 Propulsion 1 | . . . 1 . Utility 2 | . . . 1 1 Weapon . | . . . . . Parts Attached 38 | 6 1 9 17 5 Power 7 | 1 . 1 4 1 Engine 7 | 1 . 1 4 1 Core . | . . . . . Reactor . | . . . . . Propulsion 13 | 2 . 4 6 1 Treads . | . . . . . Leg 6 | 2 . 4 . . Wheel 7 | . . . 6 1 Hover . | . . . . . Flight . | . . . . . Utility 7 | 1 1 . 3 2 Device 2 | . 1 . . 1 Storage 1 | 1 . . . . Processor 1 | . . . 1 . Hackware . | . . . . . Protection 3 | . . . 2 1 Artifact . | . . . . . Weapon 11 | 2 . 4 4 1 Energy Gun 6 | 2 . 3 1 . Energy Cannon . | . . . . . Ballistic Gun 3 | . . 1 2 . Ballistic Cannon . | . . . . . Launcher 2 | . . . 1 1 Special Weapon . | . . . . . Impact Weapon . | . . . . . Slashing Weapon . | . . . . . Piercing Weapon . | . . . . . Special Melee Weapon . | . . . . . Unidentified Prototypes . | . . . . . Parts Lost 22 | . . 3 9 10 Power 4 | . . . 2 2 Propulsion 7 | . . 2 3 2 Utility 5 | . . . 2 3 Weapon 6 | . . 1 2 3 Highest Loss Streak 5 | . . 3 4 5 To Critical Strikes . | . . . . . Average Backups 6 | 2 7 7 7 4 Power 1 | . 1 1 2 . Propulsion 1 | 1 4 . 1 1 Utility 2 | . . 2 2 2 Weapon 1 | . 1 2 . . Tool/Special . | . . . . . Unused Backups 7 | . . 4 . 3 Power . | . . . . . Propulsion 4 | . . 4 . . Utility 3 | . . . . 3 Weapon . | . . . . . Tool/Special . | . . . . . Average Slot Usage (%) 87 | . 96 98 98 51 Engine 11 | . 14 14 10 9 Leg 16 | . 28 26 14 . Wheel 7 | . . . 18 6 Device 8 | . 11 14 5 4 Storage 11 | . 14 14 11 7 Processor 5 | . . . 10 7 Protection 2 | . . . 5 4 Energy Gun 14 | . 28 23 9 . Ballistic Gun 6 | . . 4 11 6 Launcher 1 | . . . . 4 Peak Build Rating 15 | 6 7 8 10 15 Average Rating 8 | 4 6 7 9 8 On Entrance 5 | . 6 7 8 8 Naked Turns 70 | . . . . 70 Heaviest Build 23 | 12 13 16 15 23 Greatest Support 48 | 20 20 20 48 30 Greatest Overweight (x) 6 | 3 . 3 1 6 Average Overweight (x) . | . . . . 1 Largest Inventory Capacity 8 | 8 8 8 8 8 Average Capacity 7 | 7 8 8 8 7 Most Carried 8 | 6 8 8 8 7 Average Carried 6 | 2 7 7 7 4 Final Capacity 8 | 8 8 8 8 5 Final Carried 8 | 6 8 8 8 5 Class Distribution -------------------- 75% | Mutant 24% | Scavenger-Mutant Dominant Class ---------------- Mutant | -10/Materials Mutant | -10/Mines Scavenger-Mutant | -9/Materials Mutant | -8/Materials Resources | -11 -10 -10 -9 -8 ----------- Run | Yrd Mat Min Mat Mat Matter Collected 820 | 197 . 280 205 138 Remotely . | . . . . . Salvage Created 1325 | . . 376 484 465 Parts 87 | . . 16 42 29 Haulers Intercepted 1 | . . . . 1 Recyclers Shooed . | . . . . . Parts Field Recycled . | . . . . . Retrieved Matter . | . . . . . Parts Self-Destructed . | . . . . . Prevented . | . . . . . Kills | -11 -10 -10 -9 -8 ------- Run | Yrd Mat Min Mat Mat Combat Hostiles Destroyed 35 | . . 10 15 10 Guns 26 | . . 9 15 2 AOE 8 | . . . . 8 Classes Destroyed 9 | . . 3 2 4 Worker 1 | . . . 1 . Builder 1 | . . . . 1 Hauler 1 | . . . . 1 Mechanic 1 | . . . 1 . Operator 1 | . . . . 1 Swarmer 15 | . . 3 8 4 Grunt 14 | . . 5 4 5 Sentry 5 | . . 2 3 . Hunter 1 | . . . . 1 Best Kill Streak 7 | . . 3 6 7 Combat Bots Only 6 | . . 3 4 6 Max Kills in Single Turn 3 | . . 1 1 3 Gunslinging . | . . . . . Exploded 3 | . . . . 3 Melee . | . . . . . Uniques/NPCs Destroyed . | . . . . . Combat | -11 -10 -10 -9 -8 -------- Run | Yrd Mat Min Mat Mat Hostile Shots Fired 426 | . . 102 134 190 Missed 131 | . . 26 40 65 Hits 295 | . . 76 94 125 Projectile 295 | . . 76 94 125 Critical Strikes 6 | . . 4 . 2 Damage Taken 2633 | . . 708 749 1176 Core 854 | . . 163 130 561 Absorbed by Shields . | . . . . . Ignored by Resistances 810 | . . 215 234 361 Core Remaining (%) 67 | 100 . 34 67 . Volleys Fired 121 | . . 47 49 25 Largest 2 | . . 2 2 2 Hottest 106 | . . 106 70 56 Shots Fired 207 | . . 70 89 48 Gun 197 | . . 70 88 39 Cannon . | . . . . . Launcher 10 | . . . 1 9 Special . | . . . . . Kinetic 110 | . . 17 54 39 Thermal 87 | . . 53 34 . Explosive 1 | . . . 1 . Electromagnetic 9 | . . . . 9 Robot Hit Streak 20 | . . 15 17 20 Robot Miss Streak 3 | . . 2 2 3 Penetration Max . | . . . . . Secondary Targets 4 | . . 1 3 . Max Gunslinging Chain 1 | . . 1 1 . Shots Hit Robots 164 | . . 57 68 39 Core Hits 79 | . . 20 28 31 Critical Kills 1 | . . 1 . . Critical Parts Destroyed . | . . . . . Critical Strikes 2 | . . 2 . . Burn 1 | . . 1 . . Destroy 1 | . . 1 . . Melee Attacks . | . . . . . Impact . | . . . . . Slashing . | . . . . . Piercing . | . . . . . Sneak Attacks . | . . . . . Combat Hostiles . | . . . . . Follow-up Attacks . | . . . . . Damage Inflicted 2019 | . . 570 594 855 Guns 1371 | . . 565 575 231 Cannons . | . . . . . Explosions 626 | . . . 19 607 Melee . | . . . . . Ramming 22 | . . 5 . 17 Kinetic 652 | . . 123 298 231 Thermal 874 | . . 442 277 155 Explosive 19 | . . . 19 . Electromagnetic 452 | . . . . 452 Impact . | . . . . . Slashing . | . . . . . Piercing . | . . . . . Highest Corruption 1 | . 1 1 . 1 Average Corruption 1 | . 1 1 . 1 Corruption Purged . | . . . . . Corruption Blocked . | . . . . . Effects 9 | . 2 7 . . Message Errors 3 | . . 3 . . Heat Flow Errors 3 | . 2 1 . . Data Loss (minor) 1 | . . 1 . . Data Loss (major) 1 | . . 1 . . Misfires 1 | . . 1 . . Overload Shots . | . . . . . Overflow Damage 2 | . . . . 2 Projectiles . | . . . . . Explosions 2 | . . . . 2 Melee . | . . . . . Knockbacks . | . . . . . Impact . | . . . . . Kinetic . | . . . . . Secondary . | . . . . . Self-Inflicted Damage 110 | . . . 15 95 Shots 7 | . . . 1 6 Rammed 5 | . . . . 5 Targets Rammed 7 | . . 2 . 5 Kicked 2 | . . 2 . . Crushed . | . . . . . Highest Temperature 394 | . 233 394 78 33 Average Temperature 96 | . 100 153 21 12 Received Heat Transfer 1197 | . . 498 321 378 Effects 4 | . . 4 . . Shutdowns 1 | . . 1 . . Energy Bleed 1 | . . 1 . . Interference 1 | . . 1 . . Short Circuit 1 | . . 1 . . Siege Activations . | . . . . . Martial Activations . | . . . . . Shielding Activations . | . . . . . Robots Disrupted . | . . . . . Combat Hostiles . | . . . . . Robots Corrupted . | . . . . . Combat Hostiles . | . . . . . Parts Fried 1 | . . . . 1 Impact Corruptions . | . . . . . Robots Melted 1 | . . 1 . . Combat Hostiles 1 | . . 1 . . Parts Melted 6 | . . 4 . 2 Heat Transferred 2087 | . . 1212 625 250 Parts Sabotaged . | . . . . . Parts Stolen . | . . . . . Parts Stripped . | . . . . . Power Chain Reactions 5 | . . . . 5 Alert | -11 -10 -10 -9 -8 ------- Run | Yrd Mat Min Mat Mat Maximum Alert Level . | . . . . . Low Security (%) 100 | 100 100 100 100 100 Level 1 . | . . . . . Level 2 . | . . . . . Level 3 . | . . . . . Level 4 . | . . . . . Level 5 . | . . . . . High Security . | . . . . . Max Security . | . . . . . Peak Influence 162 | . 3 60 132 162 Initial 34 | . . . 9 34 Average 34 | . . 16 52 66 Influence Increases 1037 | . 3 230 407 397 Destroy 0b10 Robot/C 700 | . . 200 300 200 Destroy 0b10 Robot/NC 25 | . . . 10 15 Destroy Leader 132 | . . 30 60 42 Successful Hack 3 | . 3 . . . Destroy Structure 12 | . . . 7 5 Lose Combat Pursuer 165 | . . . 30 135 Influence Decreases 885 | . 3 200 340 342 Entered New Map 84 | . . . 21 63 Time Decay 592 | . 3 180 229 180 Lost Part 209 | . . 20 90 99 Squads Dispatched 6 | . 1 . 1 4 Investigation 2 | . 1 . 1 . Extermination . | . . . . . Reinforcement 4 | . . . . 4 Assault . | . . . . . Garrison . | . . . . . Intercept . | . . . . . Searches Triggered . | . . . . . Construction Impeded 2 | . . . . 2 Haulers Reinforced . | . . . . . Active Scanning Responses . | . . . . . Cargo Convoy Interrupts . | . . . . . Stealth | -11 -10 -10 -9 -8 --------- Run | Yrd Mat Min Mat Mat Distress Signals 4 | . . . 1 3 Communications Jammed . | . . . . . Distress Signals . | . . . . . Times Spotted 70 | . 2 11 21 36 Peak Tracking Total 15 | . 1 3 6 15 Tactical Retreats 5 | . . . 2 3 Traps | -11 -10 -10 -9 -8 ------- Run | Yrd Mat Min Mat Mat Traps Triggered 3 | . 2 . . 1 Indirectly . | . . . . . Trap Hack Attempts . | . . . . . Triggered . | . . . . . Disarmed . | . . . . . Reprogrammed . | . . . . . Reused . | . . . . . Traps Extracted . | . . . . . Installed . | . . . . . Triggered . | . . . . . Machines | -11 -10 -10 -9 -8 ---------- Run | Yrd Mat Min Mat Mat Machines Disabled . | . . . . . Max in Single Turn . | . . . . . Machines Repaired . | . . . . . Machines Dismantled . | . . . . . Machines Sabotaged . | . . . . . Overloaded Fab Kills . | . . . . . Hacking | -11 -10 -10 -9 -8 --------- Run | Yrd Mat Min Mat Mat Machines Accessed 3 | . 1 . 1 1 Terminals 3 | . 1 . 1 1 Fabricators . | . . . . . Repair Stations . | . . . . . Recycling Units . | . . . . . Scanalyzers . | . . . . . Garrison Access . | . . . . . Total Hacks 5 | . 2 . 2 1 Successful 2 | . 1 . . 1 Failed 3 | . 1 . 2 . Catastrophic 2 | . 1 . 1 . Database Lockouts . | . . . . . Manual . | . . . . . Terminals 5 | . 2 . 2 1 Fabricators . | . . . . . Repair Stations . | . . . . . Recycling Units . | . . . . . Scanalyzers . | . . . . . Garrison Access . | . . . . . Terminal Hacks 2 | . 1 . . 1 Locate Traps 1 | . 1 . . . Transport Status 1 | . . . . 1 Fabricator Hacks . | . . . . . Repair Station Hacks . | . . . . . Recycling Unit Hacks . | . . . . . Scanalyzer . | . . . . . Garrison Access Hacks . | . . . . . Unauthorized Hacks . | . . . . . Terminals . | . . . . . Fabricators . | . . . . . Repair Stations . | . . . . . Recycling Units . | . . . . . Scanalyzers . | . . . . . Garrison Access . | . . . . . Data Cores Recovered . | . . . . . Used . | . . . . . Hacking Detections 2 | . 1 . 1 . Full Trace Events 2 | . 1 . 1 . Feedback Events . | . . . . . Feedback Blocked . | . . . . . Robot Schematics Acquired . | . . . . . Robots Built . | . . . . . Authchips . | . . . . . Time . | . . . . . Total Robot Build Rating . | . . . . . Part Schematics Acquired . | . . . . . Parts Built . | . . . . . Authchips . | . . . . . Time . | . . . . . Total Part Build Rating . | . . . . . Parts Repaired . | . . . . . Time . | . . . . . Parts Recycled . | . . . . . Recycled Matter . | . . . . . Retrieved Matter . | . . . . . Retrieved Components . | . . . . . Parts Scanalyzed . | . . . . . Part Schematics Acquired . | . . . . . Parts Damaged . | . . . . . Bothacking | -11 -10 -10 -9 -8 ------------ Run | Yrd Mat Min Mat Mat Used RIF Installer . | . . . . . Robots Hacked . | . . . . . Non-combat . | . . . . . Combat . | . . . . . Robot Hacks Applied . | . . . . . Relay Couplers Released . | . . . . . Fabnet Peak Effective % . | . . . . . Robots Rewired . | . . . . . Allies Hacked . | . . . . . Hacks Repelled . | . . . . . Allies | -11 -10 -10 -9 -8 -------- Run | Yrd Mat Min Mat Mat Total Allies . | . . . . . Largest Group . | . . . . . Highest-Rated Group . | . . . . . Highest-Rated Ally . | . . . . . Total Orders . | . . . . . Ally Attacks . | . . . . . Total Damage . | . . . . . Kills . | . . . . . Allies Corrupted . | . . . . . Allies Melted . | . . . . . Intel | -11 -10 -10 -9 -8 ------- Run | Yrd Mat Min Mat Mat Active Infowar (turns) 993 | . 151 607 235 . Seismic 993 | . 151 607 235 . Robot Analysis Total . | . . . . . Derelict Logs Recovered . | . . . . . Drone Launches . | . . . . . Drone Recoveries . | . . . . . Exploration | -11 -10 -10 -9 -8 ------------- Run | Yrd Mat Min Mat Mat Turns Passed 1832 | 118 182 607 539 386 Spaces Moved 1235 | 87 149 391 347 261 Core 232 | 36 . 2 . 194 Treads . | . . . . . Legs 753 | 51 149 389 164 . Wheels 250 | . . . 183 67 Hover . | . . . . . Flight . | . . . . . Fastest Speed 50 | 50 120 120 90 50 Average Speed 115 | 118 120 120 108 114 Slowest Speed 350 | 200 120 200 120 350 Overloaded Moves . | . . . . . Propulsion Burnouts . | . . . . . Robots Hopped . | . . . . . Potential Cave-ins . | . . . . . Cave-ins Triggered . | . . . . . Exploration Rate (%) 29 | 5 24 68 26 24 Regions Visited 4 Branch Regions 1 Pre-discovered Areas . | . . . . . Known Exits Taken . | . . . . . Unknown Exits Taken 4 | 1 1 1 1 . Scrap Searched 1 | . . 1 . . Spaces Dug . | . . . . . Terrain Destroyed 10 | . . . 5 5 Melee . | . . . . . Projectile . | . . . . . AOE 10 | . . . 5 5 Terrain Rammed . | . . . . . Walls Destroyed . | . . . . . Machines Disabled . | . . . . . Actions | -11 -10 -10 -9 -8 --------- Run | Yrd Mat Min Mat Mat Total 1444 | 98 151 463 428 304 Wait . | . . . . . Move 1231 | 86 148 390 346 261 Hop . | . . . . . Pick Up 19 | 6 2 4 4 3 Fast Attach 16 | 6 1 2 7 . Attach 16 | . . 2 7 7 Detach 4 | . . 1 1 2 Swap 12 | . . 6 6 . Drop 18 | . . 9 8 1 Fire 121 | . . 47 49 25 Melee . | . . . . . Ram 5 | . . . . 5 Kick 2 | . . 2 . . Crush . | . . . . . Escape Stasis . | . . . . . Rewire . | . . . . . Trap . | . . . . . Miscellaneous . | . . . . . Route ------- -11/Scrapyard -10/Materials -10/Mines -9/Materials -8/Materials History --------- Turn | Location | Event 8 | -11/Scrapyard | Discovered new exit (range 15) 119 | -11/Scrapyard | Entered Materials 275 | -10/Materials | Discovered new exit (range 13) 301 | -10/Materials | Entered Mines 304 | -10/Mines | Build established: Mutant 712 | -10/Mines | Core integrity fell below 50% 739 | -10/Mines | Lost 3 parts (2n1w) 812 | -10/Mines | Found a damaged Exp. Sensor Array with a note attached 817 | -10/Mines | Found Prototype Device 843 | -10/Mines | Received a Rocket Launcher from a helpful Derelict 883 | -10/Mines | Discovered new exit (range 16) 908 | -10/Mines | Entered Materials 908 | -9/Materials | Evolved 2 slots: Propulsion x1, Utility x1 1363 | -9/Materials | Discovered new exit (range 8) 1409 | -9/Materials | Lost 4 parts (1p1n1u1w) 1447 | -9/Materials | Entered another Materials area 1447 | -8/Materials | Evolved 2 slots: Power x1, Utility x1 1580 | -8/Materials | Lost 5 parts (1p2n1u1w) 1669 | -8/Materials | Lost 3 parts (2u1w) 1763 | -8/Materials | Released all parts (2) 1785 | -8/Materials | Core integrity fell below 50% 1829 | -8/Materials | Core integrity fell below 20% 1833 | -8/Materials | Destroyed by G-47 Trooper with Particle Gun Last Messages --------------- Leg. 01744_ W-25 Informer distress signal alerts nearby ally. 01744_ R-06 Scavenger collects Corrupted Spread Laser. 01748_ R-06 Scavenger collects Trap Scanner. 01755_ Shock Bomb Launcher destroyed. 01757_ Ion Engine destroyed. 01763_ Released Targeting Computer. 01763_ Released Sml. Storage Unit. 01772_ U-05 Engineer works on Electrolysis Chamber. 01811_ Triggered Shock Trap. 01811_ The floor emits a surge of raw power. 01811_ System corrupted (+1). 01825_ K-01 Serf collects debris. 01828_ Slammed into U-05 Engineer. 01829_ ALERT: Construction progress impeded, dispatching reinforcements to local area. 01831_ Slammed into U-05 Engineer. Map ----- +----------------------------------------------------+ | ??????????? | | """ """ #?????????????????? | | """ """ #?????????????????? | | """ """ ##?????????#######?? | | ^ ######## #??????????? ??? | | #??????# #???????????# #??? | | """ """ """ #####??# #???????????# #?? | | """ """ "" ####/###?????????# #? | | """ """ "" # #?????????# = # | | # #?????????# # | | + #??######## + | | ######## # #??# T # | | ########### #??????# # #??# #?? | | #?????????# ???????# # #??# #??? | | ######????#+??????##+##/########### % #??? | | +???????????## ! # # % #?#? | | ####???????????# # [# ]]] #? ? | | #??????????????## ! # "" =+ ]]] # ?? | | #???????????????# # R"!# ==[] ] # "" | | #???????????????# "" # """ # %= / "" | | #???????????????# """ # # =% [ # | | #???????????????# R" ############# # #??? | | #???????????????# """ #???????????###= #??? | | #???????????????# #????????????##% #??? | | #???#+##+#############/################# #??? | | #???# % %@u w r % #??? | | ##### s w gg % #??? | | s s s k g w g = #??? | | #########+########+####################+#######??? | | #???? ??????# #????????### % #??????? | | #???? ??????# """ #????????#"" """ #??????? | | "" #???! ?????# """ #????????#"T """ #??????? | | T" #??? ?????# """ #????????#"" """ #??????? | | "" #?? ????# #????????### #??????? | | #?? ????# #??????????# ! #??????? | | ####? ???########??????????##+#####??????? | | ????? ] ??????????????????????# #??????????? | | ????##+########?????????????????????# #??????????? | | ????????????????????????????????????# #??????????? | | ????????????????????????????????????# #??????????? | | ????????????????????????????????????? #??????????? | | ????????????????????????????????????? ??????????? | | ????????????????????????????????????? ??????????? | | ????????????????????????????????????? ??????????? | | ????????????????????????????????????? ??????????? | | ????????????????????????????????????? ??????????? | | ????????????????????????????????????? ??????????? | | ?????????????????????????????????????????????????? | | ?????????????????????????????????????????????????? | | ?????????????????????????????????????????????????? | +----------------------------------------------------+ Best States ------------- Heat Dissipation 41 Energy Generation 17 Energy Capacity 415 Matter Stores 300 Matter Capacity 300 Sight Range 16 Terrain Scan Density 10 Armor Coverage 150 Resistance: KI 20 Resistance: TH 20 Resistance: EX 20 Resistance: EM 35 Resistance: I 20 Resistance: S 20 Resistance: P 20 Evasion (%) 55 Targeting Accuracy 5 Offensive Hacking 10 Item Schematics ----------------- None Robot Schematics ------------------ None Fabricated ------------ Nothing Repaired ---------- Nothing Alien Tech Used ----------------- None Achievements -------------- None Challenges ------------ None Game ------ Seed StormImprinterRegenerator Manual? 0 Play Time 00:21:59 Cumulative 42.1 hours Start 2025.06.18 @ 22:26:25 End 2025.06.18 @ 22:47:09 Sessions 1 Manual Loads 0 Difficulty Adventurer Special Mode None Game No. 93 Rogue 0 Adventurer 32 Explorer 61 Win Type - Total 0 Types 0/0/0/0/0/0/0/0/0/0 Lore% 4 Gallery% 24 Achievement% 25 Wizard Run 0 Options --------- Layout 1 ASCII 0 Keyboard 1 Movement Arrows Keybinds 0 Fullscreen 1 Font 16/SmallcapsGlow Map View 55x38 Zoom Use 0% Tactical HUD 1 Map Filters NONE Filters NONE Steam 1 RUN: 0b6de83c-d1ec-42f0-99ed-22ce0149da21